Cogmind - Beta 13 @@@ ROGUE MODE // 2024.04.13 @ 19:23:17 // Halloween2019/Abominations Player: Minty Result: Self-destructed Performance ------------- Evolutions (1) 500 Regions Visited (2) 400 Robots Destroyed (29) 145 Value Destroyed (1346) 1346 Prototype IDs (2) 40 Alien Tech Used (0) 0 Bonus (0) 0 TOTAL SCORE: 2431 Bonus ------- None Cogmind --------- Core Integrity 242/400 Matter 146/300 Energy 37/100 System Corruption 0% Temperature Warning (338) Movement Rolling (100) Location -9/Materials Parts ------- > --- POWER (1) -------- (None) > --- PROPULSION (2) --- Compact Wheel > --- UTILITY (3) ------ Small Storage Unit Hacking Suite > --- WEAPON (3) ------- Spread Laser Spread Laser > --- INVENTORY (8) ---- Light Treads Light Treads Aluminum Leg Aluminum Leg EM Shotgun Rocket Launcher Hammer Peak State ------------ > --- POWER ------------ Backup Power I > --- PROPULSION ------- Compact Wheel Backup Propulsion I > --- UTILITY ---------- Small Storage Unit Hacking Suite > --- WEAPON ----------- Spread Laser Rocket Launcher Hammer > --- INVENTORY -------- Light Treads Light Treads Aluminum Leg Aluminum Leg EM Shotgun Spread Laser Spread Laser [Rating: 13] Favorites ----------- Power Ion Engine Engine Ion Engine Propulsion Compact Wheel Leg Aluminum Leg Wheel Compact Wheel Hover Unit Backup Propulsion I Utility Small Storage Unit Storage Small Storage Unit Hackware Hacking Suite Weapon Rocket Launcher Energy Gun Spread Laser Ballistic Gun Assault Rifle Launcher Rocket Launcher Impact Weapon Hammer Build | -11 -10 -9 ------- Run | Yrd Mat Mat Slots Evolved 2 | . . 2 Power . | . . . Propulsion . | . . . Utility 1 | . . 1 Weapon 1 | . . 1 Parts Attached 14 | . 11 3 Power 1 | . 1 . Engine 1 | . 1 . Core . | . . . Reactor . | . . . Propulsion 2 | . 2 . Treads . | . . . Leg . | . . . Wheel 2 | . 2 . Hover . | . . . Flight . | . . . Utility 1 | . 1 . Device . | . . . Storage . | . . . Processor . | . . . Hackware 1 | . 1 . Protection . | . . . Artifact . | . . . Weapon 10 | . 7 3 Energy Gun 5 | . 2 3 Energy Cannon . | . . . Ballistic Gun . | . . . Ballistic Cannon . | . . . Launcher 4 | . 4 . Special Weapon . | . . . Impact Weapon 1 | . 1 . Slashing Weapon . | . . . Piercing Weapon . | . . . Special Melee Weapon . | . . . Unidentified Prototypes . | . . . Parts Lost 7 | . 4 3 Power 3 | . 2 1 Propulsion 2 | . 1 1 Utility . | . . . Weapon 2 | . 1 1 Highest Loss Streak 3 | . 1 3 To Critical Strikes . | . . . Average Slot Usage (%) 88 | . 91 79 Engine 12 | . 13 11 Leg 5 | . 7 . Wheel 13 | . 14 11 Hover 5 | . 3 11 Storage 13 | . 14 11 Hackware 10 | . 10 11 Energy Gun 6 | . 6 4 Ballistic Gun 1 | . 1 . Launcher 11 | . 11 10 Impact Weapon 7 | . 6 10 Naked Turns . | . . . Heaviest Build 18 | 14 18 16 Greatest Support 32 | 20 32 16 Greatest Overweight (x) . | . . . Average Overweight (x) . | . . . Largest Inventory Capacity 8 | . 8 8 Average Capacity 8 | . 8 8 Most Carried 8 | . 8 8 Average Carried 7 | . 7 7 Final Capacity 8 | 8 8 8 Final Carried 8 | 6 8 7 Class Distribution -------------------- 100% | Mutant Dominant Class ---------------- Mutant | -10/Materials Mutant | -9/Materials Resources | -11 -10 -9 ----------- Run | Yrd Mat Mat Matter Collected 735 | 200 498 37 Remotely . | . . . Salvage Created 699 | . 567 132 Parts 34 | . 26 8 Haulers Intercepted . | . . . Recyclers Shooed . | . . . Parts Field Recycled . | . . . Retrieved Matter . | . . . Parts Self-Destructed . | . . . Prevented . | . . . Kills | -11 -10 -9 ------- Run | Yrd Mat Mat Combat Hostiles Destroyed 25 | . 20 5 Guns 5 | . 4 1 AOE 20 | . 16 4 Classes Destroyed 6 | . 4 2 Mechanic 1 | . 1 . Watcher 2 | . . 2 Grunt 10 | . 10 . Sentry 1 | . . 1 Abomination 14 | . 10 4 Anomaly 1 | . 1 . Best Kill Streak 9 | . 9 6 Combat Bots Only 9 | . 9 5 Max Kills in Single Turn 2 | . 2 1 Gunslinging . | . . . Exploded 2 | . 2 1 Melee . | . . . Uniques/NPCs Destroyed . | . . . Combat | -11 -10 -9 -------- Run | Yrd Mat Mat Hostile Shots Fired 113 | . 74 39 Missed 34 | . 25 9 Damage Taken 1344 | . 879 465 Core 391 | . 233 158 Absorbed by Shields . | . . . Core Remaining (%) 53 | 100 6 . Volleys Fired 57 | . 38 19 Largest 3 | . 2 3 Hottest 195 | . 130 195 Shots Fired 84 | . 58 26 Gun 36 | . 26 10 Cannon . | . . . Launcher 48 | . 32 16 Special . | . . . Kinetic . | . . . Thermal 36 | . 26 10 Explosive 48 | . 32 16 Electromagnetic . | . . . Robot Hit Streak 9 | . 9 9 Robot Miss Streak 8 | . 8 4 Penetration Max . | . . . Secondary Targets 1 | . 1 . Max Gunslinging Chain 1 | . 1 . Shots Hit Robots 68 | . 46 22 Core Hits 101 | . 75 26 Critical Kills 1 | . 1 . Critical Parts Destroyed 1 | . . 1 Critical Strikes 2 | . 1 1 Smash 2 | . 1 1 Melee Attacks 6 | . 3 3 Impact 6 | . 3 3 Slashing . | . . . Piercing . | . . . Sneak Attacks 3 | . 3 . Combat Hostiles . | . . . Follow-up Attacks . | . . . Damage Inflicted 3280 | . 2185 1095 Guns 524 | . 387 137 Cannons . | . . . Explosions 2545 | . 1614 931 Melee 211 | . 184 27 Ramming . | . . . Kinetic . | . . . Thermal 524 | . 387 137 Explosive 2545 | . 1614 931 Electromagnetic . | . . . Impact 211 | . 184 27 Slashing . | . . . Piercing . | . . . Highest Corruption 1 | . 1 . Average Corruption 1 | . 1 . Corruption Purged . | . . . Corruption Blocked . | . . . Effects 1 | . 1 . Message Errors 1 | . 1 . Overload Shots . | . . . Overflow Damage 87 | . 25 62 Projectiles . | . . . Explosions 60 | . 25 35 Melee 27 | . . 27 Knockbacks 2 | . 2 . Impact 2 | . 2 . Kinetic . | . . . Secondary . | . . . Self-Inflicted Damage 129 | . 95 34 Shots 4 | . 3 1 Rammed . | . . . Targets Rammed . | . . . Kicked . | . . . Crushed . | . . . Highest Temperature 533 | . 533 338 Average Temperature 156 | . 161 122 Received Heat Transfer 361 | . 321 40 Effects 7 | . 4 3 Shutdowns 1 | . 1 . Interference 5 | . 2 3 Matter Decay 1 | . 1 . Siege Activations . | . . . Robots Corrupted . | . . . Combat Hostiles . | . . . Parts Fried 4 | . . 4 Impact Corruptions 1 | . . 1 Robots Melted . | . . . Combat Hostiles . | . . . Parts Melted . | . . . Heat Transferred 297 | . 242 55 Parts Sabotaged . | . . . Parts Stolen . | . . . Parts Stripped . | . . . Power Chain Reactions . | . . . Alert | -11 -10 -9 ------- Run | Yrd Mat Mat Peak Influence 352 | . 352 310 Initial 144 | . . 144 Average 205 | . 207 201 Maximum Alert Level 1 | . 1 1 Low Security (%) 49 | . 47 54 Level 1 50 | . 52 45 Level 2 . | . . . Level 3 . | . . . Level 4 . | . . . Level 5 . | . . . High Security . | . . . Max Security . | . . . Squads Dispatched 8 | . 5 3 Investigation 2 | . 1 1 Extermination . | . . . Reinforcement 4 | . 2 2 Assault 2 | . 2 . Garrison . | . . . Intercept . | . . . Searches Triggered . | . . . Construction Impeded . | . . . Haulers Reinforced . | . . . Active Scanning Responses . | . . . Cargo Convoy Interrupts . | . . . Stealth | -11 -10 -9 --------- Run | Yrd Mat Mat Distress Signals 3 | . . 3 Communications Jammed . | . . . Distress Signals . | . . . Times Spotted 37 | . 23 14 Peak Tracking Total 8 | . 6 8 Tactical Retreats 1 | . . 1 Traps | -11 -10 -9 ------- Run | Yrd Mat Mat Traps Triggered . | . . . Indirectly . | . . . Trap Hack Attempts . | . . . Triggered . | . . . Disarmed . | . . . Reprogrammed . | . . . Reused . | . . . Traps Extracted . | . . . Installed . | . . . Triggered . | . . . Machines | -11 -10 -9 ---------- Run | Yrd Mat Mat Machines Disabled 2 | . . 2 Max in Single Turn 1 | . . 1 Machines Repaired . | . . . Machines Dismantled . | . . . Machines Sabotaged . | . . . Overloaded Fab Kills . | . . . Hacking | -11 -10 -9 --------- Run | Yrd Mat Mat Machines Accessed 4 | . 2 2 Terminals 3 | . 1 2 Fabricators . | . . . Repair Stations 1 | . 1 . Recycling Units . | . . . Scanalyzers . | . . . Garrison Access . | . . . Total Hacks 12 | . 5 7 Successful 5 | . 3 2 Failed 7 | . 2 5 Catastrophic 1 | . . 1 Database Lockouts . | . . . Manual 9 | . 2 7 Terminals 11 | . 4 7 Fabricators . | . . . Repair Stations 1 | . 1 . Recycling Units . | . . . Scanalyzers . | . . . Garrison Access . | . . . Terminal Hacks 3 | . 2 1 Prototype ID Bank 1 | . 1 . Alert Level 1 | . 1 . Recall Reinforcements 1 | . . 1 Fabricator Hacks . | . . . Repair Station Hacks 1 | . 1 . Refit 1 | . 1 . Recycling Unit Hacks . | . . . Scanalyzer . | . . . Garrison Access Hacks . | . . . Unauthorized Hacks 1 | . . 1 Terminals 1 | . . 1 Botnet 1 | . . 1 Fabricators . | . . . Repair Stations . | . . . Recycling Units . | . . . Scanalyzers . | . . . Garrison Access . | . . . Data Cores Recovered . | . . . Used . | . . . Hacking Detections 3 | . 1 2 Full Trace Events 3 | . 1 2 Feedback Events 1 | . 1 . Corruption 1 | . 1 . Feedback Blocked . | . . . Robot Schematics Acquired . | . . . Robots Built . | . . . Authchips . | . . . Time . | . . . Total Robot Build Rating . | . . . Part Schematics Acquired . | . . . Parts Built . | . . . Authchips . | . . . Time . | . . . Total Part Build Rating . | . . . Parts Repaired . | . . . Time . | . . . Parts Recycled . | . . . Recycled Matter . | . . . Retrieved Matter . | . . . Retrieved Components . | . . . Parts Scanalyzed . | . . . Part Schematics Acquired . | . . . Parts Damaged . | . . . Bothacking | -11 -10 -9 ------------ Run | Yrd Mat Mat Used RIF Installer . | . . . Robots Hacked . | . . . Non-combat . | . . . Combat . | . . . Robot Hacks Applied . | . . . Relay Couplers Released . | . . . Fabnet Peak Effective % . | . . . Robots Rewired . | . . . Allies Hacked . | . . . Hacks Repelled . | . . . Allies | -11 -10 -9 -------- Run | Yrd Mat Mat Total Allies . | . . . Largest Group . | . . . Highest-Rated Group . | . . . Highest-Rated Ally . | . . . Total Orders . | . . . Ally Attacks . | . . . Total Damage . | . . . Kills . | . . . Allies Corrupted . | . . . Allies Melted . | . . . Intel | -11 -10 -9 ------- Run | Yrd Mat Mat Robot Analysis Total . | . . . Derelict Logs Recovered . | . . . Drone Launches . | . . . Drone Recoveries . | . . . Exploration | -11 -10 -9 ------------- Run | Yrd Mat Mat Turns Passed 507 | . 383 124 Spaces Moved 299 | 1 229 69 Core . | . . . Treads . | . . . Legs 55 | 1 54 . Wheels 244 | . 175 69 Hover . | . . . Flight . | . . . Fastest Speed 100 | 120 100 100 Average Speed 103 | 120 104 100 Slowest Speed 120 | 120 120 100 Overloaded Moves . | . . . Propulsion Burnouts . | . . . Robots Hopped . | . . . Cave-ins Triggered . | . . . Exploration Rate (%) 24 | 2 56 14 Regions Visited 2 Branch Regions . Pre-discovered Areas . | . . . Known Exits Taken . | . . . Unknown Exits Taken 2 | 1 1 . Scrap Searched . | . . . Spaces Dug 1 | . . 1 Terrain Destroyed 218 | . 157 61 Melee 1 | . . 1 Projectile . | . . . AOE 217 | . 157 60 Terrain Rammed . | . . . Walls Destroyed . | . . . Machines Disabled . | . . . Actions | -11 -10 -9 --------- Run | Yrd Mat Mat Total 384 | . 289 95 Wait . | . . . Move 297 | . 228 69 Hop . | . . . Pick Up 4 | . 4 . Fast Attach 4 | . 4 . Attach 3 | . 1 2 Detach 3 | . 2 1 Swap 7 | . 6 1 Drop 3 | . 3 . Fire 57 | . 38 19 Melee 6 | . 3 3 Ram . | . . . Kick . | . . . Crush . | . . . Escape Stasis . | . . . Rewire . | . . . Trap . | . . . Miscellaneous . | . . . Route ------- -11/Scrapyard -10/Materials -9/Materials History --------- Turn | Location | Event 1 | -11/Scrapyard | Discovered new exit (range 0) 1 | -11/Scrapyard | Entered Materials 120 | -10/Materials | Destroyed 9 combat bots 166 | -10/Materials | Core integrity fell below 50% 217 | -10/Materials | Core integrity fell below 20% 232 | -10/Materials | Discovered new exit (range 10) 305 | -10/Materials | Build established: Mutant 373 | -10/Materials | Discovered new exit (range 11) 384 | -10/Materials | Entered another Materials area 384 | -9/Materials | Evolved 2 slots: Utility x1, Weapon x1 508 | -9/Materials | Self-destructed Last Messages --------------- 00497_ Y-45 Defender destroyed. 00498_ Lesser Abomination spits out Lgt. Assault Rifle. 00498_ Lesser Abomination absorbs Corrupted Hvy. Assault Rifle. 00498_ Hungry Anomaly eats Lgt. Assault Rifle. 00499_ Hungry Anomaly eats Beam Cannon. 00501_ Hungry Anomaly eats Prototype Energy Gun. 00502_ Ice Anomaly freezes G-47 Trooper. 00502_ The unstable cave ceiling collapses. 00503_ Ice Anomaly freezes G-34 Mercenary. 00503_ Ice Anomaly freezes G-47 Trooper. 00505_ ALERT: Hostiles spotted, dispatching reinforcements to Terminal M005. 00506_ Overheating: System interference. 00506_ Spread Laser temporarily disabled. 00506_ Lesser Abomination sheds Unstable Anomaly. 00506_ Backup Propulsion I destroyed. 00507_ Backup Power I destroyed. 00508_ Ice Anomaly freezes G-34 Mercenary. 00508_ Ice Anomaly freezes G-47 Trooper. 00508_ Spread Laser destroyed. Map ----- +----------------------------------------------------+ | ?????????????????????????????????????????????????? | | ?????????????????????????????????????????????????? | | ?????????????????????????????????????????????????? | | ?????????????????????????????????????????????????? | | ?????????????????????????????????????????????????? | | ?????????????????????????????????????????????????? | | ?????????????????????????????????????????????????? | | ?????????????????????????????????????????????????? | | ?????????????????????????????????????????????????? | | ?????????????????????????????????????????????????? | | ???????????????????????##+???????????????????????? | | ?????????????????????? ??? ???????????????????? | | ?????????????????????? g ??? ?????????????????? | | ?????????????????????? ?? ?????????????????? | | ??????????????????????# """ "??? ?????????????? | | ??????????????????????#g """ """? ""????????????? | | ?????????????????????""n """ """ "????????????? | | ?????????????????????"" " "????????????? | | ??####???????????????"T " "????????????? | | ??# #?????????????"" n """???????????? | | ???# ########???????" ""???????????? | | ##### ################# ""???????????? | | " ?????????? | | [ +????????? | | A[% #????????? | | #####+################# @ %[ #????????? | | ???# #????????## ##?????????????? | | " ? " #?????????# % A #?????????????? | | " " #?????????# # A #?????????????? | | " # """"" #?????????# % #? + ???????????? | | " # """"" #?????????# #?? # ??????????? | | " # """"" #????????? #??? #?? ??????????? | | "???# """"" #?????????# A #???? #?????????????? | | ????# ""??? #?????????##/###??????#?????????????? | | ????# ???????????????? ??????????????????????? | | ????####?????????????????""??????????????????????? | | ?????????????????????????""??????????????????????? | | ?????????????????????????""??????????????????????? | | #????????????????????????????????????????????????? | | ##???????????????????????????????????????????????? | | #???????????????????????????????????????????????? | | #???????????????????????????????????????????????? | | #???????????????????????????????????????????????? | | #???????????????????????????????????????????????? | | #???????????????????????????????????????????????? | | #???????????????????????????????????????????????? | | ?+???????????????????????????????????????????????? | | ?????????????????????????????????????????????????? | | ?????????????????????????????????????????????????? | | ?????????????????????????????????????????????????? | +----------------------------------------------------+ Best States ------------- Heat Dissipation 28 Energy Generation 10 Energy Capacity 250 Matter Stores 300 Matter Capacity 300 Sight Range 16 Terrain Scan Density 10 Evasion (%) 55 Offensive Hacking 10 Item Schematics ----------------- None Robot Schematics ------------------ None Fabricated ------------ Nothing Alien Tech Used ----------------- None Achievements -------------- None Challenges ------------ None Game ------ Seed GyrokineticGlidesysInjector Manual? 0 Play Time 00:09:44 Cumulative 711.7 hours Start 2024.04.13 @ 17:57:41 End 2024.04.13 @ 19:23:17 Sessions 1 Manual Loads 0 Difficulty Rogue Special Mode Halloween2019/Abominations Game No. 757 Rogue 482 Adventurer 123 Explorer 152 Win Type - Total 26 Types 20/0/4/1/0/0/0/1/0 Lore% 83 Gallery% 91 Achievement% 76 Wizard Run 0 Options --------- Layout 0 ASCII 0 Keyboard 1 Movement Numpad Keybinds 0 Fullscreen 2 Font 18/Terminus Map View 76x50 Zoom Use 2% Tactical HUD 1 Map Filters NONE Filters NONE Steam 1 RUN: d3612303-ba19-4290-8049-19fb90fd6323